Cogmind - Beta 12 X4 @@@ ROGUE MODE // 2022.12.10 @ 18:37:55 Player: Lunatic Blue Result: Destroyed by G-67 Veteran with Field Laser Performance ------------- Evolutions (7) 3500 Regions Visited (24) 4800 Robots Destroyed (238) 1190 Value Destroyed (9295) 9295 Prototype IDs (12) 240 Alien Tech Used (0) 0 Bonus (3352) 3352 TOTAL SCORE: 22377 Bonus ------- High Alert Combat Kills 1410 Follower Combat Kills 1612 Network Hubs Disabled 200 Built Enhanced Grunts 300 A7 Reached Mainframe 300 Met R17 at Cetus 500 Friendly Fire -970 Cogmind --------- Core Integrity 0/1300 Matter 129/300 Energy 100/100 System Corruption 5% Temperature Cool (21) Movement Core (1350) Ox26 Location -3/Research Parts ------- > --- POWER (2) -------- (None) > --- PROPULSION (6) --- (None) > --- UTILITY (9) ------ Huge Storage Unit Enhanced Optical Array Core Analyzer > --- WEAPON (4) ------- (None) > --- INVENTORY (25) --- Advanced Heat Sink Advanced Heat Sink Medium Storage Unit Advanced Signal Interpreter Advanced Terrain Scan Processor Great Maul Peak State ------------ > --- POWER ------------ Neutrino Core Micro Antimatter Reactor > --- PROPULSION ------- Improved Treads Medium Treads Centrium Heavy Treads Centrium Heavy Treads > --- UTILITY ---------- Advanced Heat Sink Huge Storage Unit Enhanced Optical Array Advanced Sensor Array Core Analyzer Improved Weapon Cycler Improved Phase Shifter Improved Medium Armor Plating Centrium Medium Armor Plating > --- WEAPON ----------- KE Penetrator Railgun Advanced KE Penetrator Advanced KE Penetrator > --- INVENTORY -------- Neutrino Core Neutrino Core Micro Fission Core Light Antimatter Reactor Light Antimatter Reactor Light Antimatter Reactor Light Treads Light Treads Armored Huge Wheel Advanced Heat Sink Advanced Heat Sink Medium Storage Unit Advanced Signal Interpreter Advanced Terrain Scan Processor Heavy Armor Plating Centrium Medium Armor Plating KE Penetrator KE Penetrator Railgun Enhanced Gauss Cannon Smartbomb Launcher Great Maul [Rating: 143] Favorites ----------- Power Neutrino Core Engine Improved Deuterium Engine Power Core Neutrino Core Reactor Quantum Reactor Propulsion Improved Treads Treads Improved Treads Leg Carbon-fiber Leg Wheel Wheel Hover Unit Antigrav System Flight Unit VTOL Module Utility Enhanced Optical Array Device Improved Heat Sink Storage Medium Storage Unit Processor Enhanced Optical Array Hackware Hacking Suite Protection Improved Medium Armor Plating Weapon KE Penetrator Energy Gun Tesla Rifle Energy Cannon Disruptor Cannon Ballistic Gun KE Penetrator Ballistic Cannon Battle Cannon Launcher Rocket Launcher Impact Weapon Makeshift Hammer Slashing Weapon Greatsword Build | -11 -10 -10 -9 -9 -9 -8 -8 -7 -7 -7 -7 -7 -7 -6 -6 -6 -6 -5 -5 -5 -5 -5 -4 -3 ------- Run | Scr Mat Min Mat Min Exi Min Mat Fac Was Fac Low Low Zio Pro Fac Low Low Fac Ext Cet Arc Hub Fac Res Slots Evolved 14 | . . . 2 . . . 2 2 . . . . . . 2 . . 2 . . . . 2 2 Power 1 | . . . . . . . . 1 . . . . . . . . . . . . . . . . Propulsion 4 | . . . 1 . . . . 1 . . . . . . 1 . . . . . . . 1 . Utility 7 | . . . . . . . 2 . . . . . . . 1 . . 2 . . . . 1 1 Weapon 2 | . . . 1 . . . . . . . . . . . . . . . . . . . . 1 Parts Attached 335 | 8 6 . 27 1 1 5 14 14 2 11 11 6 12 12 20 3 5 33 77 13 3 . 23 28 Power 42 | 2 . . 2 . . . 1 1 . 1 2 1 1 1 2 1 . 7 9 1 . . 4 6 Engine 8 | 2 . . 1 . . . . . . . 2 1 1 . . . . . 1 . . . . . Core 27 | . . . 1 . . . 1 1 . 1 . . . 1 2 1 . 7 8 . . . 3 1 Reactor 7 | . . . . . . . . . . . . . . . . . . . . 1 . . 1 5 Propulsion 100 | 3 1 . 8 . . 2 3 6 . 2 4 1 2 8 6 1 5 9 26 4 . . 5 4 Treads 48 | 1 1 . 8 . . 2 3 6 . . . 1 . . . . . . 14 4 . . 5 3 Leg 12 | 1 . . . . . . . . . . 3 . . 1 . . . . 7 . . . . . Wheel 4 | 1 . . . . . . . . . . 1 . 1 . . . . . . . . . . 1 Hover 11 | . . . . . . . . . . . . . . . 4 1 1 1 4 . . . . . Flight 25 | . . . . . . . . . . 2 . . 1 7 2 . 4 8 1 . . . . . Utility 81 | 1 3 . 8 1 1 3 7 5 . 4 1 1 2 1 4 . . 8 15 3 2 . 7 4 Device 34 | . 1 . 3 . 1 1 3 1 . 2 . 1 1 . 2 . . 5 6 1 1 . 3 2 Storage 10 | 1 1 . . . . . 1 1 . . 1 . . 1 1 . . . 2 . . . 1 . Processor 7 | . . . . . . . 2 . . 1 . . . . 1 . . 2 1 . . . . . Hackware 3 | . . . . . . . . . . 1 . . 1 . . . . 1 . . . . . . Protection 27 | . 1 . 5 1 . 2 1 3 . . . . . . . . . . 6 2 1 . 3 2 Artifact . | . . . . . . . . . . . . . . . . . . . . . . . . . Weapon 112 | 2 2 . 9 . . . 3 2 2 4 4 3 7 2 8 1 . 9 27 5 1 . 7 14 Energy Gun 8 | . . . . . . . . . . . . . . . 2 . . 6 . . . . . . Energy Cannon 1 | . . . . . . . . . . . . . . . . . . 1 . . . . . . Ballistic Gun 64 | 2 2 . 9 . . . 3 2 . 2 1 1 4 2 . . . 2 15 2 1 . 6 10 Ballistic Cannon 8 | . . . . . . . . . . . . 1 2 . . . . . 2 2 . . . 1 Launcher 8 | . . . . . . . . . 2 . . 1 . . . . . . 2 . . . 1 2 Special Weapon . | . . . . . . . . . . . . . . . . . . . . . . . . . Impact Weapon 12 | . . . . . . . . . . . . . 1 . 6 . . . 3 1 . . . 1 Slashing Weapon 11 | . . . . . . . . . . 2 3 . . . . 1 . . 5 . . . . . Piercing Weapon . | . . . . . . . . . . . . . . . . . . . . . . . . . Special Melee Weapon . | . . . . . . . . . . . . . . . . . . . . . . . . . Unidentified Prototypes 10 | . . . 1 . 1 . . . . . . . . . 1 . . 3 . 4 . . . . Corrupted Parts 8 | . . . . . . . . . . . . . . . . . . . 4 4 . . . . System Corruption 31 | . . . . . . . . . . . . . . . . . . . 13 18 . . . . Parts Lost 102 | . . . . . . . 1 2 3 2 2 3 . 7 9 2 6 9 11 1 1 1 10 32 Power 18 | . . . . . . . 1 . . 1 . 1 . 1 2 . 1 1 2 . . 1 . 7 Propulsion 39 | . . . . . . . . 1 1 1 2 1 . 5 4 1 3 3 6 . . . 4 7 Utility 28 | . . . . . . . . 1 1 . . 1 . . 3 . 2 4 1 . . . 6 9 Weapon 17 | . . . . . . . . . 1 . . . . 1 . 1 . 1 2 1 1 . . 9 Highest Loss Streak 27 | . . . . . . . 1 1 3 1 1 3 . 4 8 2 5 5 8 1 1 1 3 27 To Critical Strikes 2 | . . . . . . . . . . . . . . . . . 1 . . . . . . 1 Average Slot Usage (%) 87 | . 97 100 98 100 100 100 98 98 53 32 63 75 82 69 61 61 45 57 95 90 88 88 84 86 Engine 3 | . 14 14 6 . . . . . . . 9 11 14 2 . . . . . . . . . . Core 6 | . . . 4 11 11 11 9 14 8 2 . . . 3 6 6 3 7 10 6 5 5 5 3 Treads 16 | . 19 28 31 33 33 33 26 29 16 . . 2 6 . . . . . 12 19 17 17 18 18 Leg 3 | . . . . . . . . . . . 6 8 6 . . . . . 12 . . . . . Flight 1 | . . . . . . . . . . 10 . . . 20 17 . 3 18 . . . . . . Device 8 | . 7 . . . . 2 9 7 4 7 15 14 15 7 6 13 9 7 8 5 5 5 10 17 Storage 6 | . 14 14 11 11 11 11 9 7 4 . . 7 6 6 4 6 5 . 3 5 5 5 5 4 Processor 6 | . . . . . . . 9 7 4 2 6 . . . 5 6 6 12 18 17 17 17 14 9 Hackware 2 | . . . . . . . . . . 5 7 7 7 15 11 6 3 3 . . . . . . Protection 6 | . 4 14 10 11 11 8 8 7 3 . . . . . . . . . 7 11 11 11 9 8 Ballistic Gun 17 | . 28 28 32 33 33 33 26 23 3 1 3 13 13 4 . . . . 11 12 17 17 13 17 Ballistic Cannon 1 | . . . . . . . . . . . . 5 6 . . . . . 1 2 . . . . Naked Turns 34 | . . . . . . . . . 29 5 . . . . . . . . . . . . . . Heaviest Build 160 | 12 32 32 43 43 39 41 62 109 111 7 40 43 47 28 26 29 29 23 135 145 146 146 148 160 Greatest Support 240 | 20 40 40 66 66 66 66 66 107 107 8 30 30 17 29 30 30 29 25 125 183 183 183 240 211 Greatest Overweight (x) 33 | 2 2 . . . . . . 1 1 2 2 2 2 7 1 1 1 1 4 1 . . . 33 Average Overweight (x) . | . 1 . . . . . . . . . . 1 1 . . . . . . . . . . . Largest Inventory Capacity 25 | 8 15 15 15 15 15 15 20 25 25 5 10 10 10 10 10 10 10 5 25 25 25 25 25 25 Average Capacity 14 | 7 14 15 15 15 15 15 15 23 16 5 5 10 9 9 9 10 9 5 8 25 25 25 25 25 Most Carried 25 | 4 15 15 15 15 15 15 20 25 24 5 5 8 10 10 10 10 10 5 13 25 25 25 25 25 Average Carried 13 | 1 11 15 14 15 15 15 15 21 15 4 4 6 8 7 8 9 8 4 7 21 24 25 24 20 Final Capacity 25 | 8 15 15 15 15 15 15 20 25 5 5 10 10 5 10 10 10 5 5 25 25 25 25 25 25 Final Carried 25 | 4 15 15 15 15 15 15 20 24 5 5 5 7 5 10 7 9 5 5 13 25 25 25 21 6 Class Distribution -------------------- 30% | Scavenger-Gunner 15% | Tank 13% | Scavenger-Mutant 12% | Gunner 12% | Mutant 6% | Scavenger-Tank 3% | Hacker-Mutant Dominant Class ---------------- Mutant | -10/Materials Mutant | -10/Mines Tank | -9/Materials Tank | -9/Mines Tank | -9/Exiles Tank | -8/Mines Gunner | -8/Materials Gunner | -7/Factory Mutant | -7/Waste Scavenger-Sprinter | -7/Factory Scavenger-Mutant | -7/Lower Caves Scavenger-Gunner | -7/Lower Caves Scavenger-Gunner | -7/Zion Hacker-Mutant | -6/Proximity Caves Hacker-Mutant | -6/Factory Mutant | -6/Lower Caves Mutant | -6/Lower Caves Scavenger-Sprinter | -5/Factory Scavenger-Gunner | -5/Extension Scavenger-Gunner | -5/Cetus Scavenger-Gunner | -5/Archives Scavenger-Gunner | -5/Hub_04(d) Scavenger-Gunner | -4/Factory Scavenger-Tank | -3/Research Resources | -11 -10 -10 -9 -9 -9 -8 -8 -7 -7 -7 -7 -7 -7 -6 -6 -6 -6 -5 -5 -5 -5 -5 -4 -3 ----------- Run | Scr Mat Min Mat Min Exi Min Mat Fac Was Fac Low Low Zio Pro Fac Low Low Fac Ext Cet Arc Hub Fac Res Matter Collected 9139 | 224 189 . 1083 100 . 370 462 428 175 79 246 213 88 308 207 42 . 176 1999 388 129 103 1273 857 Remotely 642 | . . . 211 . . 90 341 . . . . . . . . . . . . . . . . . Salvage Created 11955 | . 139 . 1218 102 . 514 520 567 . 79 501 256 . 683 296 117 . 229 2203 295 94 100 2611 1431 Parts 589 | . 18 . 77 6 . 30 31 33 . 6 18 16 . 14 18 2 . 13 96 18 2 5 124 62 Haulers Intercepted 7 | . . . 4 . . . 2 . . . . . . . . . . . 1 . . . . . Recyclers Shooed 6 | . 2 . . . . . . 1 . . . . . . . . . 1 . . . . 2 . Parts Field Recycled . | . . . . . . . . . . . . . . . . . . . . . . . . . Retrieved Matter . | . . . . . . . . . . . . . . . . . . . . . . . . . Parts Self-Destructed 29 | . . . . . . . . . . . 5 18 1 5 . . . . . . . . . . Prevented 2 | . . . . . . . . . . . 1 . . . . 1 . . . . . . . . Kills | -11 -10 -10 -9 -9 -9 -8 -8 -7 -7 -7 -7 -7 -7 -6 -6 -6 -6 -5 -5 -5 -5 -5 -4 -3 ------- Run | Scr Mat Min Mat Min Exi Min Mat Fac Was Fac Low Low Zio Pro Fac Low Low Fac Ext Cet Arc Hub Fac Res Combat Hostiles Destroyed 175 | . 4 . 22 3 . 10 10 8 . 3 2 7 . 8 8 2 . 6 25 7 1 1 29 19 Melee 6 | . . . . . . . . . . . 2 . . . 1 1 . . 2 . . . . . Guns 149 | . 4 . 22 3 . 10 10 8 . 3 . 5 . 8 6 . . 6 16 7 1 1 26 13 Cannons 7 | . . . . . . . . . . . . . . . . . . . 6 . . . . 1 AOE 10 | . . . . . . . . . . . . 2 . . . . . . . . . . 3 5 Classes Destroyed 20 | . 4 . 5 . . 2 1 1 . . 3 . . . . . . . 3 . . . . 1 Worker 13 | . 1 . 1 . . . . 2 . . . . . . . . . 1 . . . . 6 2 Builder 11 | . . . . . . . . . . . . . . . . . . . 4 . . 2 4 1 Tunneler 2 | . 1 . . . . 1 . . . . . . . . . . . . . . . . . . Hauler 7 | . . . 4 . . . 2 . . . . . . . . . . . 1 . . . . . Recycler 16 | . . . 2 . . . . 1 . . . . . . 1 . . . 3 . . . 7 2 Minesweeper 1 | . . . . . . . . . . . 1 . . . . . . . . . . . . . Mechanic 2 | . . . . . . . . . . . . . . . . . . . 1 . . . 1 . Operator 1 | . . . . . . . 1 . . . . . . . . . . . . . . . . . Watcher 6 | . . . 2 . . . . 1 . . . . . . . . . . . 1 . . 1 1 Swarmer 52 | . 3 . 6 1 . . 3 . . 3 . . . 7 8 . . 5 3 4 . . 5 4 Grunt 41 | . 1 . 8 1 . 6 2 3 . . . 5 . . . 1 . . 4 . . . 5 5 Brawler 9 | . . . 3 1 . 1 1 . . . . . . . . . . . 1 . . . . 2 Duelist 3 | . . . . . . 1 1 1 . . . . . . . . . . . . . . . . Protector 1 | . . . . . . . . . . . . . . . . . . . . . . . . 1 Sentry 25 | . . . 5 . . . 1 1 . . . . . . . 1 . . 8 . 1 1 4 3 Hunter 19 | . . . . . . 2 2 2 . . 2 . . . . . . . 3 . . . 6 2 Programmer 19 | . . . . . . . . 1 . . . 2 . 1 . . . 1 2 1 . . 9 2 Behemoth 1 | . . . . . . . . . . . . . . . . . . . 1 . . . . . Cetus Guard 2 | . . . . . . . . . . . . . . . . . . . . 2 . . . . Packrat 3 | . . . . . . . . . . . 2 . . 1 . . . . . . . . . . Samaritan 2 | . . . . . . . . . . . 1 . . 1 . . . . . . . . . . Thug 3 | . . . . . . . . . . . 1 . . . . . . . 2 . . . . . Savage 1 | . . . . . . . . . . . . . . . . . . . 1 . . . . . Butcher 2 | . . . . . . . . . . . 1 . . . . . . . 1 . . . . . Mutant 1 | . . . . . . . . . . . 1 . . . . . . . . . . . . . Best Kill Streak 17 | . 3 . 5 2 . 8 4 3 . 3 1 4 . 3 6 2 . 4 4 4 1 3 17 7 Combat Bots Only 7 | . 3 . 3 2 . 7 4 3 . 3 1 4 . 3 6 2 . 3 4 4 1 1 6 6 Max Kills in Single Turn 5 | . 1 . 2 1 . 1 1 1 . 1 1 2 . 1 1 1 . 1 2 2 1 1 5 2 Gunslinging 1 | . . . 1 . . . . . . . . . . . . . . . . . . . 1 1 Exploded 2 | . . . . . . . . . . . . 2 . . . . . . . . . . 2 2 Melee 1 | . . . . . . . . . . . 1 . . . 1 1 . . 1 . . . . . Uniques/NPCs Destroyed . | . . . . . . . . . . . . . . . . . . . . . . . . . Combat | -11 -10 -10 -9 -9 -9 -8 -8 -7 -7 -7 -7 -7 -7 -6 -6 -6 -6 -5 -5 -5 -5 -5 -4 -3 -------- Run | Scr Mat Min Mat Min Exi Min Mat Fac Was Fac Low Low Zio Pro Fac Low Low Fac Ext Cet Arc Hub Fac Res Damage Taken 21073 | . 154 . 897 108 . 709 663 610 242 182 355 453 . 489 857 276 476 957 2945 231 328 677 3327 6137 Core 3825 | . 36 . 117 10 . 98 79 22 34 120 60 196 . 165 441 35 153 266 230 15 22 81 334 1311 Absorbed by Shields 461 | . . . . . . . . . . . . . . . . . . . 53 . . . . 408 Regen/Repaired (Parts) 793 | . . . . . . . 366 . . . . . . . . . . . . . . . 427 . Core Remaining (%) 57 | 100 . 85 . . . 43 85 . . . . . . 14 . . 26 . . . . 38 70 . Volleys Fired 558 | . 17 . 70 9 . 31 32 31 8 5 2 15 . 39 15 . . 37 82 16 10 6 82 51 Largest 4 | . 2 . 3 3 . 3 3 3 2 2 1 3 . 1 1 . . 1 3 3 3 3 3 4 Hottest 147 | . 40 . 69 69 . 69 71 71 66 48 28 95 . 30 75 . . 65 147 123 103 103 105 138 Shots Fired 1421 | . 34 . 209 27 . 93 96 93 16 10 3 33 . 39 15 . . 36 214 43 25 16 236 183 Gun 1360 | . 34 . 209 27 . 93 96 93 . 10 3 24 . 39 15 . . 36 199 32 25 16 233 176 Cannon 34 | . . . . . . . . . . . . 7 . . . . . . 14 11 . . . 2 Launcher 27 | . . . . . . . . . 16 . . 2 . . . . . . 1 . . . 3 5 Special . | . . . . . . . . . . . . . . . . . . . . . . . . . Kinetic 1360 | . 34 . 209 27 . 93 96 93 . 10 3 31 . 39 . . . 17 213 43 25 16 233 178 Thermal 15 | . . . . . . . . . . . . . . . 15 . . . . . . . . . Explosive 27 | . . . . . . . . . 16 . . 2 . . . . . . 1 . . . 3 5 Electromagnetic 19 | . . . . . . . . . . . . . . . . . . 19 . . . . . . Robot Hit Streak 19 | . 7 . 16 13 . 15 19 17 15 5 4 4 . 12 2 . . 5 7 7 14 5 13 11 Robot Miss Streak 7 | . 5 . 4 1 . 2 3 4 1 1 . 7 . 2 4 . . 3 4 3 2 3 6 4 Penetration Max 1 | . . . . . . . . . . . . 1 . 1 . . . 1 1 1 . 1 1 1 Secondary Targets 25 | . . . 2 1 . 2 3 . . . . . . . . . . . 3 1 . . 9 4 Max Gunslinging Chain 1 | . . . 1 1 . 1 1 . . . . . . . . . . . 1 1 . . 1 1 Shots Hit Robots 912 | . 17 . 124 20 . 59 66 67 12 6 19 17 . 33 10 5 . 19 127 25 21 11 137 117 Core Hits 479 | . 10 . 46 5 . 27 26 28 4 5 10 21 . 16 8 2 . 11 70 14 5 7 92 72 Critical Kills 38 | . . . . . . . . . . . . . . . . . . . 12 3 1 1 14 7 Critical Parts Destroyed 38 | . . . 2 . . 1 . . . . . . . 1 . . . 2 6 1 2 . 15 8 Critical Strikes 88 | . . . 2 . . 1 . . . . 2 . . 1 1 . . 2 22 5 4 1 30 17 Burn 1 | . . . . . . . . . . . . . . . 1 . . . . . . . . . Destroy 83 | . . . 2 . . 1 . . . . . . . 1 . . . 2 22 4 4 1 30 16 Blast 2 | . . . . . . . . . . . . . . . . . . . . 1 . . . 1 Sever 2 | . . . . . . . . . . . 2 . . . . . . . . . . . . . Melee Attacks 100 | . . . . . . . . . . 5 17 . . 9 31 9 . . 25 2 . . . 2 Impact 73 | . . . . . . . . . . . . . . 9 31 9 . . 20 2 . . . 2 Slashing 27 | . . . . . . . . . . 5 17 . . . . . . . 5 . . . . . Piercing . | . . . . . . . . . . . . . . . . . . . . . . . . . Sneak Attacks 18 | . . . . . . . . . . . 9 . . 2 2 . . . 5 . . . . . Combat Hostiles . | . . . . . . . . . . . . . . . . . . . . . . . . . Follow-up Attacks . | . . . . . . . . . . . . . . . . . . . . . . . . . Damage Inflicted 27194 | . 229 . 1994 324 . 850 928 989 1493 93 1244 687 . 1100 599 218 . 733 3807 717 547 383 5717 4542 Guns 19573 | . 229 . 1994 324 . 850 925 989 . 93 59 315 . 778 167 . . 669 2963 586 547 338 4560 3187 Cannons 487 | . . . . . . . . . . . . 21 . . . . . . 259 131 . . . 76 Explosions 4340 | . . . . . . . . . 1493 . . 351 . . . . . 64 1 . . . 1152 1279 Melee 2741 | . . . . . . . . . . . 1185 . . 322 432 218 . . 584 . . . . . Ramming 53 | . . . . . . . 3 . . . . . . . . . . . . . . 45 5 . Kinetic 19630 | . 229 . 1994 324 . 850 925 989 . 93 59 336 . 778 . . . 406 3222 717 547 338 4560 3263 Thermal 329 | . . . . . . . . . . . . . . . 167 . . 64 . . . . 98 . Explosive 4178 | . . . . . . . . . 1493 . . 351 . . . . . . 1 . . . 1054 1279 Electromagnetic 263 | . . . . . . . . . . . . . . . . . . 263 . . . . . . Impact 1354 | . . . . . . . . . . . . . . 322 432 218 . . 382 . . . . . Slashing 1387 | . . . . . . . . . . . 1185 . . . . . . . 202 . . . . . Piercing . | . . . . . . . . . . . . . . . . . . . . . . . . . Highest Corruption 40 | . . . . . . . 2 1 1 4 4 4 4 1 3 3 4 5 21 39 39 40 7 5 Average Corruption 10 | . . . . . . . 1 1 1 1 4 4 4 1 3 3 3 3 15 27 39 39 4 4 Corruption Purged 1 | . . . . . . . . . . . . . . . . . . 1 . . . . . . Corruption Blocked . | . . . . . . . . . . . . . . . . . . . . . . . . . Effects 234 | . . . . . . . 2 1 . 2 8 16 3 2 10 5 3 6 97 32 13 12 11 11 Message Errors 54 | . . . . . . . . . . . 3 3 2 . 4 1 1 3 17 7 4 1 5 3 Matter Fused 46 | . . . . . . . . . . . 2 3 . . 4 2 1 . 22 6 2 2 . 2 Heat Flow Errors 32 | . . . . . . . . 1 . 1 . 4 1 1 1 . . . 15 3 1 1 1 2 Energy Discharges 28 | . . . . . . . 1 . . 1 . 2 . . 1 . . . 13 3 1 2 2 2 Parts Rejected 5 | . . . . . . . . . . . . . . . . . . 1 4 . . . . . Data Loss (minor) 21 | . . . . . . . 1 . . . 1 2 . 1 . 1 1 1 9 3 . 1 . . Data Loss (major) 9 | . . . . . . . . . . . 1 1 . . . 1 . . 2 3 . . . 1 Misfires 7 | . . . . . . . . . . . 1 . . . . . . . 4 . . . 2 . Alerts 4 | . . . . . . . . . . . . 1 . . . . . . 2 1 . . . . Misdirections 5 | . . . . . . . . . . . . . . . . . . . . 2 . 3 . . Weapon Failures 23 | . . . . . . . . . . . . . . . . . . 1 9 4 5 2 1 1 Overload Shots . | . . . . . . . . . . . . . . . . . . . . . . . . . Overflow Damage 862 | . . . . . . . . . 26 . 174 24 . 257 109 14 . . 173 . . . 47 38 Projectiles 38 | . . . . . . . . . . . . . . . . . . . 29 . . . . 9 Explosions 126 | . . . . . . . . . 26 . . 24 . . . . . . . . . . 47 29 Melee 698 | . . . . . . . . . . . 174 . . 257 109 14 . . 144 . . . . . Knockbacks 8 | . . . . . . . . . . . . 1 . . 2 1 . . 2 . . 1 1 . Impact 6 | . . . . . . . . . . . . . . . 2 1 . . 1 . . 1 1 . Kinetic 1 | . . . . . . . . . . . . 1 . . . . . . . . . . . . Secondary 1 | . . . . . . . . . . . . . . . . . . . 1 . . . . . Self-Inflicted Damage 369 | . . . . . . . . . 145 . . 98 . . . . . 48 . . . . 38 40 Shots 10 | . . . . . . . . . 4 . . 2 . . . . . 1 . . . . 1 2 Rammed 7 | . . . . . . . 1 . . . . . . . . . . . . . . 5 1 . Targets Rammed 7 | . . . . . . . 1 . . . . . . . . . . . . . . 5 1 . Kicked . | . . . . . . . . . . . . . . . . . . . . . . . . . Crushed . | . . . . . . . . . . . . . . . . . . . . . . . . . Highest Temperature 416 | . 9 . 132 135 . 267 279 203 4 97 . 248 169 266 395 . 1 92 416 151 71 240 219 237 Average Temperature 74 | . 4 . 27 55 . 129 79 29 3 51 . 84 84 116 205 . 1 27 109 27 31 129 50 56 Received Heat Transfer 3539 | . 66 . 246 48 . 243 180 54 . . . 117 . 18 9 114 225 66 464 9 36 9 499 1136 Effects 15 | . . . . . . 3 . . . . . . . . 1 . . . 11 . . . . . Shutdowns 2 | . . . . . . . . . . . . . . . . . . . 2 . . . . . Energy Bleed 2 | . . . . . . 1 . . . . . . . . . . . . 1 . . . . . Interference 8 | . . . . . . 2 . . . . . . . . . . . . 6 . . . . . Matter Decay 1 | . . . . . . . . . . . . . . . 1 . . . . . . . . . Short Circuit 1 | . . . . . . . . . . . . . . . . . . . 1 . . . . . Damage (minor) 1 | . . . . . . . . . . . . . . . . . . . 1 . . . . . Siege Activations . | . . . . . . . . . . . . . . . . . . . . . . . . . Robots Corrupted . | . . . . . . . . . . . . . . . . . . . . . . . . . Combat Hostiles . | . . . . . . . . . . . . . . . . . . . . . . . . . Parts Fried 2 | . . . . . . . . . . . . . . . . . . . 2 . . . . . Impact Corruptions 24 | . . . . . . . . . . . . . . 16 3 2 . . 3 . . . . . Robots Melted . | . . . . . . . . . . . . . . . . . . . . . . . . . Combat Hostiles . | . . . . . . . . . . . . . . . . . . . . . . . . . Parts Melted 6 | . . . . . . . . . . . . . . . 1 . . . 4 . . . 1 . Heat Transferred 470 | . . . . . . . . . . . . . . . 370 . . 50 . . . . 50 . Parts Sabotaged . | . . . . . . . . . . . . . . . . . . . . . . . . . Parts Stolen . | . . . . . . . . . . . . . . . . . . . . . . . . . Parts Stripped . | . . . . . . . . . . . . . . . . . . . . . . . . . Power Chain Reactions 1 | . . . . . . . . . . . . . . . . . . 1 . . . . . . Missiles Intercepted . | . . . . . . . . . . . . . . . . . . . . . . . . . Alert | -11 -10 -10 -9 -9 -9 -8 -8 -7 -7 -7 -7 -7 -7 -6 -6 -6 -6 -5 -5 -5 -5 -5 -4 -3 ------- Run | Scr Mat Min Mat Min Exi Min Mat Fac Was Fac Low Low Zio Pro Fac Low Low Fac Ext Cet Arc Hub Fac Res Peak Influence 1137 | . 108 42 547 264 . 265 381 136 45 131 . . . . 238 . . 463 646 797 499 545 1137 972 Initial 596 | . . 42 16 169 . . 103 39 10 . . . . . 6 . . 49 135 347 291 174 233 596 Average 273 | . 33 42 358 163 . 136 179 43 16 101 . . . . 75 . . 198 322 639 453 329 424 728 Maximum Alert Level 4 | . . . 2 1 . 1 1 . . . . . . . 1 . . 2 2 3 2 2 4 3 Low Security (%) 47 | 100 100 100 14 54 . 53 62 100 100 100 . . . . 94 . . 59 34 . . 27 15 . Level 1 24 | . . . 34 45 . 46 37 . . . . . . . 5 . . 30 25 7 22 37 54 . Level 2 21 | . . . 51 . . . . . . . . . . . . . . 10 39 60 77 34 11 40 Level 3 6 | . . . . . . . . . . . . . . . . . . . . 31 . . 16 59 Level 4 . | . . . . . . . . . . . . . . . . . . . . . . . 2 . Level 5 . | . . . . . . . . . . . . . . . . . . . . . . . . . High Security . | . . . . . . . . . . . . . . . . . . . . . . . . . Max Security . | . . . . . . . . . . . . . . . . . . . . . . . . . Squads Dispatched 34 | . 1 . 2 . . . 4 2 . 1 . . . . 1 . . 4 5 . . 3 6 5 Investigation 6 | . . . 1 . . . 1 . . . . . . . . . . . 3 . . 1 . . Extermination 4 | . . . . . . . . 1 . . . . . . . . . . . . . . 3 . Reinforcement 17 | . 1 . 1 . . . . 1 . 1 . . . . 1 . . 4 1 . . 2 3 2 Assault 3 | . . . . . . . . . . . . . . . . . . . 1 . . . . 2 Garrison 4 | . . . . . . . 3 . . . . . . . . . . . . . . . . 1 Intercept . | . . . . . . . . . . . . . . . . . . . . . . . . . Searches Triggered 1 | . . . . . . . . . . . . . . . . . . 1 . . . . . . Construction Impeded 5 | . . . . . . . . . . . . . . . . . . . 1 . . 1 2 1 Haulers Reinforced 3 | . . . . . . . . . . . . . . . 1 . . . . . . . 1 1 Active Scanning Responses . | . . . . . . . . . . . . . . . . . . . . . . . . . Cargo Convoy Interrupts . | . . . . . . . . . . . . . . . . . . . . . . . . . Stealth | -11 -10 -10 -9 -9 -9 -8 -8 -7 -7 -7 -7 -7 -7 -6 -6 -6 -6 -5 -5 -5 -5 -5 -4 -3 --------- Run | Scr Mat Min Mat Min Exi Min Mat Fac Was Fac Low Low Zio Pro Fac Low Low Fac Ext Cet Arc Hub Fac Res Distress Signals 13 | . . . 2 . . . 2 . . . . . . . . . . 1 1 2 . . 4 1 Communications Jammed 45 | . . . . . . . . . . . . . . . 6 . . 23 16 . . . . . Distress Signals 45 | . . . . . . . . . . . . . . . 6 . . 23 16 . . . . . Times Spotted 369 | . 13 . 33 6 . 11 18 11 4 6 6 7 1 22 25 8 10 29 45 19 6 11 38 40 Peak Tracking Total 14 | . 3 . 3 4 . 4 6 4 3 3 3 4 1 5 6 4 7 10 6 5 2 6 8 14 Tactical Retreats 33 | . 3 . 4 . . . 2 1 . 1 1 . . 4 4 2 2 4 3 . . . . 2 Traps | -11 -10 -10 -9 -9 -9 -8 -8 -7 -7 -7 -7 -7 -7 -6 -6 -6 -6 -5 -5 -5 -5 -5 -4 -3 ------- Run | Scr Mat Min Mat Min Exi Min Mat Fac Was Fac Low Low Zio Pro Fac Low Low Fac Ext Cet Arc Hub Fac Res Traps Triggered 9 | . . . 1 . . . 2 2 . 1 . . . . 1 . . 1 . . . . . 1 Indirectly . | . . . . . . . . . . . . . . . . . . . . . . . . . Trap Hack Attempts . | . . . . . . . . . . . . . . . . . . . . . . . . . Triggered . | . . . . . . . . . . . . . . . . . . . . . . . . . Disarmed . | . . . . . . . . . . . . . . . . . . . . . . . . . Reprogrammed . | . . . . . . . . . . . . . . . . . . . . . . . . . Reused . | . . . . . . . . . . . . . . . . . . . . . . . . . Traps Extracted . | . . . . . . . . . . . . . . . . . . . . . . . . . Installed . | . . . . . . . . . . . . . . . . . . . . . . . . . Triggered 1 | . . . . . . . . . . . 1 . . . . . . . . . . . . . Machines | -11 -10 -10 -9 -9 -9 -8 -8 -7 -7 -7 -7 -7 -7 -6 -6 -6 -6 -5 -5 -5 -5 -5 -4 -3 ---------- Run | Scr Mat Min Mat Min Exi Min Mat Fac Was Fac Low Low Zio Pro Fac Low Low Fac Ext Cet Arc Hub Fac Res Machines Disabled 28 | . . . . 2 . . . . . . . . . . 1 . . 1 4 1 2 1 14 2 Max in Single Turn 5 | . . . . 1 . . . . . . . . . . 1 . . 1 1 1 1 1 5 1 Garrison Access 2 | . . . . . . . . 1 . . . . . . . . . . . . . . . 1 Network Hub 1 | . . . . . . . . . . . . . . . . . . . . . . 1 . . Machines Sabotaged 1 | . . . . . . . . . . . . . . . . . . . . . . 1 . . Overloaded Fab Kills . | . . . . . . . . . . . . . . . . . . . . . . . . . Hacking | -11 -10 -10 -9 -9 -9 -8 -8 -7 -7 -7 -7 -7 -7 -6 -6 -6 -6 -5 -5 -5 -5 -5 -4 -3 --------- Run | Scr Mat Min Mat Min Exi Min Mat Fac Was Fac Low Low Zio Pro Fac Low Low Fac Ext Cet Arc Hub Fac Res Machines Accessed 47 | . 3 . 2 . 1 1 5 6 . 3 . . . . 7 1 . 3 9 1 . 1 2 2 Terminals 37 | . 3 . 2 . . 1 3 4 . 3 . . . . 6 1 . 2 9 1 . 1 . 1 Fabricators 2 | . . . . . . . . . . . . . . . 1 . . 1 . . . . . . Repair Stations 3 | . . . . . . . 1 . . . . . . . . . . . . . . . 2 . Recycling Units 1 | . . . . . . . . 1 . . . . . . . . . . . . . . . . Scanalyzers 1 | . . . . . . . 1 . . . . . . . . . . . . . . . . . Garrison Access 2 | . . . . . . . . 1 . . . . . . . . . . . . . . . 1 Total Hacks 131 | . 12 . 8 . 1 4 18 11 . 6 . . . . 15 2 . 7 25 5 . 2 11 4 Successful 59 | . 4 . 6 . 1 1 13 5 . 2 . . . . 6 2 . 4 6 . . 1 7 1 Failed 72 | . 8 . 2 . . 3 5 6 . 4 . . . . 9 . . 3 19 5 . 1 4 3 Catastrophic 15 | . . . 1 . . 1 1 2 . . . . . . 1 . . 1 5 1 . . 1 1 Database Lockouts . | . . . . . . . . . . . . . . . . . . . . . . . . . Manual 39 | . 8 . 6 . . 1 3 2 . . . . . . 4 . . 5 6 1 . 2 . 1 Terminals 100 | . 12 . 8 . . 4 7 8 . 6 . . . . 14 2 . 6 25 5 . 2 . 1 Fabricators 2 | . . . . . . . . . . . . . . . 1 . . 1 . . . . . . Repair Stations 20 | . . . . . . . 9 . . . . . . . . . . . . . . . 11 . Recycling Units 2 | . . . . . . . . 2 . . . . . . . . . . . . . . . . Scanalyzers 2 | . . . . . . . 2 . . . . . . . . . . . . . . . . . Garrison Access 4 | . . . . . . . . 1 . . . . . . . . . . . . . . . 3 Terminal Hacks 32 | . 2 . 4 . 1 1 4 3 . 2 . . . . 5 2 . 3 5 . . . . . Record 4 | . . . . . 1 . . . . . . . . . . 2 . 1 . . . . . . Robot Analysis 3 | . . . 3 . . . . . . . . . . . . . . . . . . . . . Prototype ID Bank 1 | . . . 1 . . . . . . . . . . . . . . . . . . . . . Open Door 1 | . . . . . . . . . . . . . . . . . . . 1 . . . . . Open DSF 2 | . . . . . . . . 1 . 1 . . . . . . . . . . . . . . Level Access Points 1 | . . . . . . . . . . 1 . . . . . . . . . . . . . . Branch Access Points 3 | . . . . . . . 1 . . . . . . . 1 . . 1 . . . . . . Terminal Index 2 | . 1 . . . . . . . . . . . . . . . . . 1 . . . . . Alert Level 2 | . . . . . . . . 1 . . . . . . 1 . . . . . . . . . Unreport Threat 4 | . . . . . . . 1 1 . . . . . . 1 . . . 1 . . . . . Locate Traps 2 | . . . . . . . . . . . . . . . . . . 1 1 . . . . . Patrol Status 1 | . . . . . . . . . . . . . . . 1 . . . . . . . . . Zone Layout 6 | . 1 . . . . 1 2 . . . . . . . 1 . . . 1 . . . . . Fabricator Hacks 2 | . . . . . . . . . . . . . . . 1 . . 1 . . . . . . Network Status 2 | . . . . . . . . . . . . . . . 1 . . 1 . . . . . . Repair Station Hacks 15 | . . . . . . . 8 . . . . . . . . . . . . . . . 7 . Scan Component 8 | . . . . . . . 4 . . . . . . . . . . . . . . . 4 . Repair 7 | . . . . . . . 4 . . . . . . . . . . . . . . . 3 . Recycling Unit Hacks 1 | . . . . . . . . 1 . . . . . . . . . . . . . . . . Retrieve Components 1 | . . . . . . . . 1 . . . . . . . . . . . . . . . . Scanalyzer 1 | . . . . . . . 1 . . . . . . . . . . . . . . . . . Insert Component 1 | . . . . . . . 1 . . . . . . . . . . . . . . . . . Garrison Access Hacks 2 | . . . . . . . . 1 . . . . . . . . . . . . . . . 1 Seal Access 2 | . . . . . . . . 1 . . . . . . . . . . . . . . . 1 Unauthorized Hacks 6 | . 2 . 2 . . . . . . . . . . . . . . . 1 . . 1 . . Terminals 6 | . 2 . 2 . . . . . . . . . . . . . . . 1 . . 1 . . Botnet 2 | . 1 . 1 . . . . . . . . . . . . . . . . . . . . . Operators 3 | . 1 . 1 . . . . . . . . . . . . . . . 1 . . . . . Sabotage 1 | . . . . . . . . . . . . . . . . . . . . . . 1 . . Fabricators . | . . . . . . . . . . . . . . . . . . . . . . . . . Repair Stations . | . . . . . . . . . . . . . . . . . . . . . . . . . Recycling Units . | . . . . . . . . . . . . . . . . . . . . . . . . . Scanalyzers . | . . . . . . . . . . . . . . . . . . . . . . . . . Garrison Access . | . . . . . . . . . . . . . . . . . . . . . . . . . Data Cores Recovered . | . . . . . . . . . . . . . . . . . . . . . . . . . Used . | . . . . . . . . . . . . . . . . . . . . . . . . . Hacking Detections 39 | . 3 . 2 . . 1 5 5 . 3 . . . . 6 . . 2 8 1 . 1 1 1 Full Trace Events 4 | . . . . . . . 1 . . . . . . . . . . . 3 . . . . . Feedback Events . | . . . . . . . . . . . . . . . . . . . . . . . . . Feedback Blocked . | . . . . . . . . . . . . . . . . . . . . . . . . . Robot Schematics Acquired . | . . . . . . . . . . . . . . . . . . . . . . . . . Robots Built . | . . . . . . . . . . . . . . . . . . . . . . . . . Authchips . | . . . . . . . . . . . . . . . . . . . . . . . . . Time . | . . . . . . . . . . . . . . . . . . . . . . . . . Total Robot Build Rating . | . . . . . . . . . . . . . . . . . . . . . . . . . Part Schematics Acquired . | . . . . . . . . . . . . . . . . . . . . . . . . . Parts Built . | . . . . . . . . . . . . . . . . . . . . . . . . . Authchips . | . . . . . . . . . . . . . . . . . . . . . . . . . Time . | . . . . . . . . . . . . . . . . . . . . . . . . . Total Part Build Rating . | . . . . . . . . . . . . . . . . . . . . . . . . . Parts Repaired 7 | . . . . . . . 4 . . . . . . . . . . . . . . . 3 . Time 511 | . . . . . . . 232 . . . . . . . . . . . . . . . 279 . Parts Recycled . | . . . . . . . . . . . . . . . . . . . . . . . . . Recycled Matter . | . . . . . . . . . . . . . . . . . . . . . . . . . Retrieved Matter . | . . . . . . . . . . . . . . . . . . . . . . . . . Retrieved Components . | . . . . . . . . . . . . . . . . . . . . . . . . . Parts Scanalyzed 1 | . . . . . . . 1 . . . . . . . . . . . . . . . . . Part Schematics Acquired . | . . . . . . . . . . . . . . . . . . . . . . . . . Parts Damaged . | . . . . . . . . . . . . . . . . . . . . . . . . . Bothacking | -11 -10 -10 -9 -9 -9 -8 -8 -7 -7 -7 -7 -7 -7 -6 -6 -6 -6 -5 -5 -5 -5 -5 -4 -3 ------------ Run | Scr Mat Min Mat Min Exi Min Mat Fac Was Fac Low Low Zio Pro Fac Low Low Fac Ext Cet Arc Hub Fac Res Used RIF Installer . | . . . . . . . . . . . . . . . . . . . . . . . . . Robots Hacked . | . . . . . . . . . . . . . . . . . . . . . . . . . Non-combat . | . . . . . . . . . . . . . . . . . . . . . . . . . Combat . | . . . . . . . . . . . . . . . . . . . . . . . . . Robot Hacks Applied . | . . . . . . . . . . . . . . . . . . . . . . . . . Relay Couplers Released . | . . . . . . . . . . . . . . . . . . . . . . . . . Fabnet Peak Effective % . | . . . . . . . . . . . . . . . . . . . . . . . . . Robots Rewired 14 | . . . . . . . . . . . . . . . . . . . 14 . . . . . Allies Hacked 2 | . . . . . . . . . . . . . . . . . . . 2 . . . . . Hacks Repelled . | . . . . . . . . . . . . . . . . . . . . . . . . . Allies | -11 -10 -10 -9 -9 -9 -8 -8 -7 -7 -7 -7 -7 -7 -6 -6 -6 -6 -5 -5 -5 -5 -5 -4 -3 -------- Run | Scr Mat Min Mat Min Exi Min Mat Fac Was Fac Low Low Zio Pro Fac Low Low Fac Ext Cet Arc Hub Fac Res Total Allies 26 | . . . . 3 . . . . 1 . . . . . . . . . 17 5 . . . . Largest Group 5 | . . . . 3 1 . . . 1 . . . . . . . . . 5 5 4 3 . . Highest-Rated Group 537 | . . . . 76 31 . . . 31 . . . . . . . . . 201 537 441 279 . . Highest-Rated Ally 159 | . . . . 31 31 . . . 31 . . . . . . . . . 159 159 153 96 . . Total Orders . | . . . . . . . . . . . . . . . . . . . . . . . . . Ally Attacks 253 | . . . . 7 . . . . 21 . . . . . . . . . 110 59 22 34 . . Total Damage 6506 | . . . . 106 . . . . 404 . . . . . . . . . 1879 2195 763 1159 . . Kills 50 | . . . . 3 . . . . 1 . . . . . . . . . 22 14 4 6 . . Allies Corrupted 5 | . . . . . . . . . . . . . . . . . . . 2 1 . 2 . . Allies Melted . | . . . . . . . . . . . . . . . . . . . . . . . . . Intel | -11 -10 -10 -9 -9 -9 -8 -8 -7 -7 -7 -7 -7 -7 -6 -6 -6 -6 -5 -5 -5 -5 -5 -4 -3 ------- Run | Scr Mat Min Mat Min Exi Min Mat Fac Was Fac Low Low Zio Pro Fac Low Low Fac Ext Cet Arc Hub Fac Res Robot Analysis Total 3 | . . . 3 . . . . . . . . . . . . . . . . . . . . . Derelict Logs Recovered 8 | . . 1 . 2 . . . . . . 1 1 1 1 . 1 . . . . . . . . Drone Launches . | . . . . . . . . . . . . . . . . . . . . . . . . . Drone Recoveries . | . . . . . . . . . . . . . . . . . . . . . . . . . Exploration | -11 -10 -10 -9 -9 -9 -8 -8 -7 -7 -7 -7 -7 -7 -6 -6 -6 -6 -5 -5 -5 -5 -5 -4 -3 ------------- Run | Scr Mat Min Mat Min Exi Min Mat Fac Was Fac Low Low Zio Pro Fac Low Low Fac Ext Cet Arc Hub Fac Res Turns Passed 15435 | 65 591 399 1218 853 402 368 969 1015 73 233 404 703 1658 452 448 259 114 408 2284 520 165 126 1074 634 Spaces Moved 10280 | 54 413 249 566 489 251 166 364 434 63 506 327 271 922 770 774 349 120 893 1326 249 77 62 319 266 Core 259 | 9 . . . . . . . . 56 43 102 . . 1 24 . . . 23 . . . . 1 Treads 3998 | 3 99 249 566 489 251 166 364 434 7 . . . . . . . . . 401 249 77 62 319 262 Legs 1454 | 2 . . . . . . . . . . 104 271 401 . . . . . 676 . . . . . Wheels 851 | 40 314 . . . . . . . . . 121 . 373 . . . . . . . . . . 3 Hover 651 | . . . . . . . . . . . . . . . 81 349 88 15 118 . . . . . Flight 3067 | . . . . . . . . . . 463 . . 148 769 669 . 32 878 108 . . . . . Fastest Speed 23 | 50 95 160 160 160 160 160 160 160 50 32 50 190 55 31 33 56 32 23 23 160 160 160 160 145 Average Speed 116 | 91 121 160 160 160 160 160 160 200 71 35 100 240 174 37 38 66 87 29 125 168 160 160 160 167 Slowest Speed 1700 | 160 160 160 160 160 160 160 160 240 240 150 190 260 260 400 115 110 112 110 320 240 160 160 160 1700 Overloaded Moves . | . . . . . . . . . . . . . . . . . . . . . . . . . Propulsion Burnouts . | . . . . . . . . . . . . . . . . . . . . . . . . . Robots Hopped 25 | . . . . . . . . . . 1 . . . . 7 . 3 7 7 . . . . . Cave-ins Triggered 2 | . . . . . . . . . . 1 . . . . 1 . . . . . . . . . Exploration Rate (%) 44 | 3 51 56 49 96 54 32 36 9 61 11 42 45 83 73 25 52 14 26 87 75 87 15 13 11 Regions Visited 24 Branch Regions 14 Pre-discovered Areas 6 | . . . . . 1 . . . . . . 1 3 . . 1 . . . . . . . . Known Exits Taken 5 | . . . 1 . . . . . . . 1 . . 1 1 . . 1 . . . . . . Unknown Exits Taken 17 | 1 1 1 . 1 1 1 1 . . 1 . 1 1 . . 1 1 . 1 1 1 1 1 . Scrap Searched 11 | . . . . 1 . . . . . . . 1 4 3 . 2 . . . . . . . . Spaces Dug 26 | . . . . . . . . . . 5 . . . . 19 . . . . . . . . 2 Terrain Destroyed 324 | . . . . . . . . . 68 5 . 23 . 2 19 . . 9 54 6 6 2 113 17 Melee 26 | . . . . . . . . . . 5 . . . . 19 . . . . . . . . 2 Projectile 113 | . . . . . . . . . . . . 3 . 2 . . . 5 39 6 6 2 49 1 AOE 185 | . . . . . . . . . 68 . . 20 . . . . . 4 15 . . . 64 14 Terrain Rammed . | . . . . . . . . . . . . . . . . . . . . . . . . . Walls Destroyed . | . . . . . . . . . . . . . . . . . . . . . . . . . Machines Disabled . | . . . . . . . . . . . . . . . . . . . . . . . . . Actions | -11 -10 -10 -9 -9 -9 -8 -8 -7 -7 -7 -7 -7 -7 -6 -6 -6 -6 -5 -5 -5 -5 -5 -4 -3 --------- Run | Scr Mat Min Mat Min Exi Min Mat Fac Was Fac Low Low Zio Pro Fac Low Low Fac Ext Cet Arc Hub Fac Res Total 12562 | 66 468 250 747 542 251 204 687 526 74 539 364 295 974 884 869 367 125 998 1728 311 98 72 755 368 Wait 803 | . 11 . 25 41 . 1 262 15 . 3 2 . 14 38 18 . . 11 44 6 3 . 299 10 Move 10207 | 53 412 248 565 488 250 165 363 434 62 503 326 270 921 769 759 348 113 878 1311 248 76 61 318 266 Hop 25 | . . . . . . . . . . 1 . . . . 7 . 3 7 7 . . . . . Pick Up 188 | 3 15 1 21 1 . . 10 17 1 3 2 3 8 10 7 4 1 11 31 14 2 . 20 3 Fast Attach 136 | 7 2 . 3 . . . 4 2 . 7 8 2 7 6 10 3 2 19 40 9 . . 3 2 Attach 101 | . 1 . 1 . . . 3 4 . 4 3 3 3 4 10 . 3 11 11 1 1 . 17 21 Detach 32 | 1 . . . . . . . . . 4 2 1 4 2 7 . . 4 2 . . . . 5 Swap 98 | 1 3 . 23 1 1 5 7 8 2 . . 1 2 2 . . . 3 26 3 2 . 3 5 Drop 216 | 1 7 1 39 2 . 2 5 15 1 4 2 . 15 5 5 3 3 17 58 12 4 . 12 3 Fire 558 | . 17 . 70 9 . 31 32 31 8 5 2 15 . 39 15 . . 37 82 16 10 6 82 51 Melee 100 | . . . . . . . . . . 5 17 . . 9 31 9 . . 25 2 . . . 2 Ram . | . . . . . . . . . . . . . . . . . . . . . . . . . Kick . | . . . . . . . . . . . . . . . . . . . . . . . . . Crush 7 | . . . . . . . 1 . . . . . . . . . . . . . . 5 1 . Escape Stasis . | . . . . . . . . . . . . . . . . . . . . . . . . . Rewire 91 | . . . . . . . . . . . . . . . . . . . 91 . . . . . Trap . | . . . . . . . . . . . . . . . . . . . . . . . . . Miscellaneous . | . . . . . . . . . . . . . . . . . . . . . . . . . Route ------- -11/Scrapyard -10/Materials (discovered 2 exits: *Mat / [*Min]) -10/Mines -9/Materials (discovered 3 exits: *Mat x2 / *Min) -9/Mines (discovered 4 exits: *Mat x2 / *Exi / [*Zio]) -9/Exiles -8/Mines -8/Materials -7/Factory -7/Waste -7/Factory (discovered 5 exits: Fac x4 / [*Low]) -7/Lower Caves -7/Lower Caves -7/Zion -6/Proximity Caves -6/Factory (discovered 3 exits: *Fac / *Low x2) -6/Lower Caves -6/Lower Caves -5/Factory (discovered 4 exits: Upp x2 / *Ext x2) -5/Extension (discovered 2 exits: *Fac / *Cet) -5/Cetus (discovered 2 exits: *Fac / [*Arc]) -5/Archives (discovered 3 exits: *Fac / *Hub x2) -5/Hub_04(d) -4/Factory -3/Research History --------- Turn | Location | Event 2 | -11/Scrapyard | Met Revision 17 10 | -11/Scrapyard | Discovered new exit (range 16) 66 | -11/Scrapyard | Entered Materials 310 | -10/Materials | Build established: Mutant 338 | -10/Materials | Discovered new exit (range 16) 481 | -10/Materials | Discovered new exit (range 11) 657 | -10/Materials | Entered Mines 825 | -10/Mines | Discovered new exit (range 15) 853 | -10/Mines | Received a Rocket Launcher from a helpful Derelict 915 | -10/Mines | Learned 2 Materials zone layouts 1056 | -10/Mines | Entered Materials 1056 | -9/Materials | Evolved 2 slots: Propulsion x1, Weapon x1 1057 | -9/Materials | Identified exit to Mines 1868 | -9/Materials | Discovered new exit (range 16) 2117 | -9/Materials | Build established: Tank 2181 | -9/Materials | Discovered new exit (range 4) 2274 | -9/Materials | Entered Mines 2416 | -9/Mines | Discovered new exit (range 14) 2504 | -9/Mines | Discovered new exit (range 4) 2566 | -9/Mines | Found a damaged Exp. Sensor Array with a note attached 2572 | -9/Mines | Found Prototype Device 2620 | -9/Mines | Learned Materials security intel 2838 | -9/Mines | Received a Mining Laser from a helpful Derelict 2902 | -9/Mines | A Derelict revealed a hidden shortcut to a safe place 3095 | -9/Mines | Deemed a non-threat by the Exiles lab entrance 3095 | -9/Mines | Discovered new exit (range 5) 3127 | -9/Mines | Entered Exiles 3127 | -9/Exiles | Accompanied by 1 ally 3157 | -9/Exiles | Led the pair of lost Derelicts to a safe place 3167 | -9/Exiles | Met 8R-AWN 3193 | -9/Exiles | Met EX-HEX 3275 | -9/Exiles | Met EX-DEC 3318 | -9/Exiles | Learned location of Zion (-7) 3510 | -9/Exiles | Discovered new exit (range 14) 3526 | -9/Exiles | Identified Exp. Sensor Array 3529 | -9/Exiles | Entered Mines 3753 | -8/Mines | Destroyed 7 combat bots 3780 | -8/Mines | Core integrity fell below 50% 3885 | -8/Mines | Discovered new exit (range 7) 3897 | -8/Mines | Entered Materials 3897 | -8/Materials | Evolved 2 slots: Utility x2 4080 | -8/Materials | Repaired Autogun 4113 | -8/Materials | Repaired Hrd. Light Armor Plating 4147 | -8/Materials | Repaired Imp. Treads 4284 | -8/Materials | Repaired Broken Exp. Sensor Array 4377 | -8/Materials | Build established: Gunner 4454 | -8/Materials | Garrison activated, responded to threat 4646 | -8/Materials | Discovered new exit (range 15) 4866 | -8/Materials | Entered Factory 4866 | -7/Factory | Evolved 2 slots: Power x1, Propulsion x1 4867 | -7/Factory | Identified exit to Storage 4876 | -7/Factory | Identified exit to DSF 5881 | -7/Factory | Sucked down chute 5881 | -7/Factory | Entered Waste 5882 | -7/Waste | Met a frightened Derelict 5896 | -7/Waste | Spotted C-40 Crusher 5908 | -7/Waste | Spotted C-40 Crusher 5917 | -7/Waste | Crushed by Compactor (1 part destroyed, 2 dropped) 5917 | -7/Waste | Allies destroyed C-40 Crusher 5920 | -7/Waste | Spotted C-40 Crusher 5923 | -7/Waste | Crushed by Compactor (1 part destroyed, 2 dropped) 5925 | -7/Waste | Released all parts (6) 5928 | -7/Waste | Spotted C-40 Crusher 5933 | -7/Waste | Spotted C-40 Crusher 5947 | -7/Waste | Discovered new exit (range 16) 5947 | -7/Waste | Spotted C-40 Crusher 5954 | -7/Waste | Lost 3 parts (1n1u1w) 5954 | -7/Waste | Entered Factory 6029 | -7/Factory | Discovered new exit (range 11) 6047 | -7/Factory | Identified exit to Factory 6116 | -7/Factory | Crushed by falling debris 6187 | -7/Factory | Entered Lower Caves 6294 | -7/Lower Caves | Encountered a Warlord checkpoint 6306 | -7/Lower Caves | Identified exit to Lower Caves 6591 | -7/Lower Caves | Entered another Lower Caves area 6619 | -7/Lower Caves | Build established: Scavenger-Mutant 6628 | -7/Lower Caves | Learned location of Extension (-5) 6751 | -7/Lower Caves | Core integrity fell below 50% 6781 | -7/Lower Caves | Lost 3 parts (1p1n1u) 7042 | -7/Lower Caves | Build established: Scavenger-Gunner 7159 | -7/Lower Caves | Discovered new exit (range 15) 7294 | -7/Lower Caves | Entered Zion 7371 | -7/Zion | System corruption cleaned by Quarantine Array 7765 | -7/Zion | Discovered new exit (range 13) 8242 | -7/Zion | Learned Factory interactive machine intel 8294 | -7/Zion | Found CR-A16's Pointy Stick 8385 | -7/Zion | Learned Factory garrison access intel 8562 | -7/Zion | Learned location of Recycling (-7) 8767 | -7/Zion | Learned location of Data Miner (-6) 8952 | -7/Zion | Entered Proximity Caves 9080 | -6/Proximity Caves | Learned 8 Factory zone layouts 9154 | -6/Proximity Caves | Lost 4 parts (1p3n) 9203 | -6/Proximity Caves | Core integrity fell below 20% 9371 | -6/Proximity Caves | Spotted B-75 Beast 9400 | -6/Proximity Caves | Discovered exit to Factory (range 9) 9404 | -6/Proximity Caves | Entered Factory 9404 | -6/Factory | Evolved 2 slots: Propulsion x1, Utility x1 9406 | -6/Factory | Loaded intel: 52 interactive machine locations 9407 | -6/Factory | Loaded intel: 4 garrison access locations 9506 | -6/Factory | Crushed by falling debris 9604 | -6/Factory | Identified exit to Lower Caves 9649 | -6/Factory | Discovered new exit (range 21) 9788 | -6/Factory | Core integrity fell below 50% 9794 | -6/Factory | Lost 8 parts (2p4n2u) 9832 | -6/Factory | Found Launcher Loader 9852 | -6/Factory | Entered Lower Caves 9854 | -6/Lower Caves | Attracted the attention of an 0b10 checkpoint 10108 | -6/Lower Caves | Discovered new exit (range 6) 10111 | -6/Lower Caves | Entered another Lower Caves area 10188 | -6/Lower Caves | Discovered new exit (range 6) 10225 | -6/Lower Caves | Entered Factory 10225 | -5/Factory | Evolved 2 slots: Utility x2 10240 | -5/Factory | Lost 5 parts (1p2n2u) 10432 | -5/Factory | Lost 5 parts (1p3u1w) 10525 | -5/Factory | Search patrols dispatched 10569 | -5/Factory | Spotted B-75 Beast 10584 | -5/Factory | Identified exit to Upper Caves 10584 | -5/Factory | Identified exit to Extension 10633 | -5/Factory | Entered Extension 10709 | -5/Extension | System corruption reached 10% 10755 | -5/Extension | Lost 8 parts (2p4n2w) 11537 | -5/Extension | Rescued a captive Derelict 11656 | -5/Extension | Build established: Scavenger-Mutant 11758 | -5/Extension | Spotted B-75 Beast 11783 | -5/Extension | Disrupted transfer network 11787 | -5/Extension | Spotted B-75 Beast 11791 | -5/Extension | Allies destroyed B-75 Beast 11810 | -5/Extension | Destroyed B-75 Beast 11919 | -5/Extension | Rescued a captive Derelict 12075 | -5/Extension | Build established: Scavenger-Gunner 12433 | -5/Extension | First assault squad dispatched 12750 | -5/Extension | Rescued A7 12837 | -5/Extension | Discovered new exit (range 10) 12839 | -5/Extension | Discovered new exit (range 6) 12917 | -5/Extension | Entered Cetus 12917 | -5/Cetus | Accompanied by 3 allies (A7) 12922 | -5/Cetus | Acquired a Cetus Manufacturing Module code from A7 12939 | -5/Cetus | Spotted Cetus Guard 12940 | -5/Cetus | Spotted Cetus Guard 12941 | -5/Cetus | Spotted Cetus Guard 12943 | -5/Cetus | Spotted Cetus Guard 12944 | -5/Cetus | Destroyed Cetus Guard 12955 | -5/Cetus | Allies destroyed Cetus Guard 12958 | -5/Cetus | Destroyed Cetus Guard 12966 | -5/Cetus | Allies destroyed Cetus Guard 13034 | -5/Cetus | Core integrity fell below 50% 13141 | -5/Cetus | Started Cetus Manufacturing Module 13166 | -5/Cetus | Manufactured an Enhanced Grunt 13180 | -5/Cetus | Escorted A7 to Cetus Mainframe 13191 | -5/Cetus | Manufactured an Enhanced Grunt 13216 | -5/Cetus | Manufactured an Enhanced Grunt 13221 | -5/Cetus | Discovered new exit (range 21) 13241 | -5/Cetus | Manufactured an Enhanced Grunt 13266 | -5/Cetus | Manufactured an Enhanced Grunt 13273 | -5/Cetus | Found Corrupted Prototype Device 13273 | -5/Cetus | Identified Exp. Thermal Shield 13274 | -5/Cetus | System corruption reached 30% 13301 | -5/Cetus | Spotted Cetus Guard 13302 | -5/Cetus | Spotted Cetus Guard 13305 | -5/Cetus | Spotted Cetus Guard 13315 | -5/Cetus | Allies destroyed Cetus Guard 13315 | -5/Cetus | Spotted Cetus Guard 13316 | -5/Cetus | Discovered new exit (range 22) 13322 | -5/Cetus | Allies destroyed Cetus Guard 13325 | -5/Cetus | Allies destroyed Cetus Guard 13330 | -5/Cetus | Allies destroyed Cetus Guard 13343 | -5/Cetus | Met Revision 17 13437 | -5/Cetus | Entered Archives 13437 | -5/Archives | Accompanied by 4 allies (A7) 13442 | -5/Archives | Received a hacking code to weaken MAIN.C 13491 | -5/Archives | Discovered new exit (range 21) 13503 | -5/Archives | Discovered new exit (range 19) 13517 | -5/Archives | Discovered new exit (range 22) 13602 | -5/Archives | Entered Hub_04(d) 13602 | -5/Hub_04(d) | Accompanied by 3 allies 13636 | -5/Hub_04(d) | Spotted B-75 Beast 13670 | -5/Hub_04(d) | Discovered new exit (range 19) 13708 | -5/Hub_04(d) | Network Hub disabled 13713 | -5/Hub_04(d) | Spotted Lightning 13715 | -5/Hub_04(d) | Spotted Lightning 13715 | -5/Hub_04(d) | Spotted Lightning 13728 | -5/Hub_04(d) | Entered Factory 13728 | -4/Factory | Evolved 2 slots: Propulsion x1, Utility x1 13867 | -4/Factory | Repaired Adv. KE Penetrator 13997 | -4/Factory | Repaired Broken Adv. KE Penetrator 14262 | -4/Factory | Repaired KE Penetrator 14766 | -4/Factory | Discovered new exit (range 4) 14802 | -4/Factory | Entered Research 14802 | -3/Research | Evolved 2 slots: Utility x1, Weapon x1 14819 | -3/Research | Lost 3 parts (1n2u) 14969 | -3/Research | Build established: Scavenger-Tank 15052 | -3/Research | First assault squad dispatched 15286 | -3/Research | Lost 5 parts (1p1n1u2w) 15422 | -3/Research | Core integrity fell below 50% 15433 | -3/Research | Core integrity fell below 20% 15436 | -3/Research | Destroyed by G-67 Veteran with Field Laser Last Messages --------------- 15425_ Imp. Weapon Cycler destroyed. 15426_ U-05 Engineer lays Concrete. 15426_ K-01 Serf collects debris. 15427_ U-05 Engineer lays Concrete. 15427_ KE Penetrator destroyed. 15427_ U-05 Engineer destroyed. 15427_ K-01 Serf collects debris. 15427_ K-01 Serf destroyed. 15427_ Enh. Gauss Cannon destroyed. 15428_ R-10 Processor collects Wheel. 15429_ R-10 Processor collects Structural Scanner. 15430_ G-67 Veteran suffers critical hit (Burn). 15430_ Critical hit (Burn: +37). 15430_ K-01 Serf collects debris. 15433_ R-10 Processor collects Hvy. Machine Gun. 15433_ K-01 Serf collects debris. 15435_ System corrupted: Matter fused (-5). 15436_ R-10 Processor collects Terrain Scanner. 15436_ R-10 Processor collects Wheel. 15436_ K-01 Serf collects debris. Map ----- +----------------------------------------------------+ | ??????????????????????# !!! [# | | ??????????????????????# / # | | ??????????????????????# [# | | ??????????????????????# =!# | | ??????????????????????# #####/#######%#### | | ??????????????????????# ?# #??[*#?? | | ??????????????????? ??# #?? [ #? | | ??????????????????? ???# #?? ## | | ??????????????????? ????# #?? ? | | ???????????????????? ???????# """ #?? ## | | ????????????????????? ????????# """ #??? #? | | ?????????????????????????????????# """ #?? ##? | | ????????????????????????????????## #?? #?? | | ??????????? ? ??????????????????#" #? #?? | | ?????????? ????????????????##"######+## #?? | | ?????????? ????????????????#### + #?? | | ????????? ????##????????????# #####?? | | ????????? ################### #?????? | | ???????? # #?????? | | ???????? # #?????? | | ???????? % # #?????? | | ???????? ] % "g gg + #?????? | | ??????? """|g # #?????? | | ?????? G!% # #?????? | | ?????? """==s # #?????? | | ??????# t e "@%gk######## #?????? | | ??????# % %%R R##?????# #?????? | | ??????# %g ##?????# #?????? | | ??????? ##?????# #?????? | | ??????? #??????########?????? | | ???????? #???????????????????? | | ????????###### #???????????????????? | | ?????????????# #???????????????????? | | ?????????????# """ R???????????????????? | | ?????????????# """ #???????????????????? | | ?????????????# """ #???????????????????? | | ?????????????# #???????????????????? | | ?????????????# ? T???????????????????? | | ?????????????# ? ???????????????????? | | ?????????????# ??? #???????????????????? | | ?????????????#???? #???????????????????? | | ??????????????????? ???????????????????? | | ??????????????????? ##???????????????????? | | ???????????????????#### #????????????????????? | | ??????????????????????#######????????????????????? | | ?????????????????????????????????????????????????? | | ?????????????????????????????????????????????????? | | ?????????????????????????????????????????????????? | | ?????????????????????????????????????????????????? | | ?????????????????????????????????????????????????? | +----------------------------------------------------+ Best States ------------- Heat Dissipation 65 Energy Generation 39 Energy Capacity 565 Matter Stores 417 Matter Capacity 450 Sight Range 22 Robot Scan Range 20 Terrain Scan Range 20 Terrain Scan Density 210 Jamming Range 14 Additional Mass Support 9 Armor Coverage 450 Weapon Cycling 20 Phase Shifting 10 Evasion (%) 65 Targeting Accuracy 8 Target Analysis 6 Core Analysis 6 Recoil Reduction 6 Energy Filtering 50 Offensive Hacking 21 Defensive Hacking 14 Item Schematics ----------------- None Robot Schematics ------------------ None Fabricated ------------ Nothing Alien Tech Used ----------------- None Achievements -------------- None Challenges ------------ None Game ------ Seed LightpackGhostPurifier Manual? 0 Play Time 02:30:13 Cumulative 135.5 hours Start 2022.12.10 @ 15:50:50 End 2022.12.10 @ 18:37:55 Sessions 1 Manual Loads 0 Difficulty Rogue Special Mode None Game No. 232 Rogue 232 Adventurer 0 Explorer 0 Win Type - Total 2 Types 1/0/1/0/0/0/0/0/0 Lore% 65 Gallery% 74 Achievement% 53 Wizard Run 0 Options --------- ASCII 0 Keyboard 0 Movement Mouse Keybinds 0 Fullscreen 1 Font 18/SmallcapsGlow Map View 76x50 Tactical HUD 1 Map Filters NONE Filters NONE Steam 1 RUN: 9225dd55-fbd7-4e43-a9c2-674c7a338793